bitfinex/quotes_SOLUSD_20251201
["timestamp","ask_amount","ask_price","bid_price","bid_amount"]
[1764586295355,7.99890758,127.28,127.26,0.72]
[1764586296861,12.45093601,127.28,127.26,0.72]
[1764586297356,13.11093601,127.28,127.26,0.72]
[1764586297556,75.14216157,127.26,127.23,0.72]
[1764586297861,75.14216157,127.26,127.22,0.1]
[1764586297862,0.14216157,127.24,127.22,7.96007557]
[1764586298458,0.14216157,127.24,127.23,0.72]
[1764586299744,8.00132535,127.24,127.23,0.72]
[1764586300256,8.95210649,127.23,127.22,0.1]
[1764586301446,16.81188798,127.23,127.22,0.82]
[1764586301767,0.14216157,127.23,127.22,0.82]
[1764586303879,0.14216157,127.23,127.22,8.6803993]
[1764586305854,0.14216157,127.23,127.22,13.13242773]
[1764586306367,0.14216157,127.23,127.22,8.6803993]
[1764586312367,0.14216157,127.23,127.22,0.1]
[1764586312575,0.14216157,127.23,127.22,0.82]
[1764586312977,0.14216157,127.23,127.22,0.1]
[1764586313280,21.92391641,127.23,127.22,0.1]
[1764586313478,21.26391641,127.23,127.22,0.1]
[1764586315668,16.81188798,127.23,127.22,0.1]
[1764586315863,8.95210649,127.23,127.22,0.1]
[1764586316589,9.61210649,127.23,127.22,0.1]
[1764586317486,13.07210649,127.23,127.22,0.1]
[1764586320259,12.41210649,127.23,127.22,0.1]
[1764586324478,12.41210649,127.23,127.22,0.79]
[1764586325163,12.41210649,127.23,127.22,0.1]
[1764586327886,3.1514674,127.24,127.22,0.1]
[1764586328094,46.9,127.25,127.22,5.24202843]
[1764586328273,0.14216157,127.24,127.22,5.24202843]
[1764586328481,0.14216157,127.24,127.23,0.69]
[1764586328792,0.14216157,127.24,127.23,8.54978149]
[1764586335606,0.14216157,127.24,127.23,0.69]
[1764586335797,0.14216157,127.24,127.22,7.9600613]
[1764586335999,0.14216157,127.24,127.22,8.6500613]
[1764586336993,0.14216157,127.24,127.23,0.69]
[1764586338999,0.14216157,127.24,127.22,0.1]
[1764586339201,0.14216157,127.24,127.22,0.79]
[1764586341703,0.14216157,127.24,127.22,8.65028865]
[1764586341908,0.14216157,127.24,127.23,0.69]
[1764586343503,0.14216157,127.24,127.22,8.65028865]
[1764586343807,0.14216157,127.24,127.23,0.69]
[1764586346503,0.84216157,127.24,127.22,0.1]
[1764586346686,11.80339423,127.23,127.22,0.1]
[1764586346891,15.26339423,127.23,127.22,0.1]
[1764586347092,15.96339423,127.23,127.22,0.1]
[1764586348502,23.82317572,127.23,127.22,0.1]
[1764586352900,20.97188798,127.23,127.22,0.1]
[1764586353116,23.82317572,127.23,127.22,0.1]
[1764586356121,20.27188798,127.23,127.22,0.1]
[1764586356326,12.41210649,127.23,127.22,0.1]
[1764586357827,23.12317572,127.23,127.22,0.1]
[1764586358037,23.83317572,127.23,127.22,0.1]
[1764586359439,155.98567839,127.23,127.22,0.1]
[1764586359723,159.13813927,127.23,127.22,0.1]
[1764586362929,83.95210649,127.22,127.21,0.1]
[1764586363239,87.51339423,127.22,127.21,0.1]
[1764586363533,90.66610358,127.22,127.21,0.1]
[1764586364310,95.67521514,127.22,127.21,0.1]
[1764586364512,101.98650288,127.22,127.21,0.1]
[1764586376643,12.26994492,127.22,127.21,0.77]
[1764586376952,12.41210649,127.22,127.21,0.77]
[1764586377351,12.26994492,127.22,127.21,0.77]
[1764586377733,12.41210649,127.22,127.21,0.77]
[1764586380655,8.95210649,127.22,127.21,0.77]
[1764586380843,12.41210649,127.22,127.21,0.77]
[1764586381158,8.95210649,127.22,127.21,0.77]
[1764586381339,12.41210649,127.22,127.21,0.77]
[1764586387871,3.60216157,127.22,127.21,8.63101721]
[1764586388361,3.60216157,127.22,127.21,11.48230495]
[1764586388362,0.14216157,127.22,127.21,11.48230495]
[1764586388865,16.308864,127.24,127.21,11.48230495]
[1764586389075,0.14216157,127.23,127.22,0.67]
[1764586389946,0.14216157,127.23,127.22,8.5303993]
[1764586397657,8.80994492,127.25,127.22,8.5303993]
[1764586397964,8.80994492,127.25,127.21,22.6027485]
[1764586397965,3.46,127.26,127.23,11.38066062]
[1764586398172,0.14216157,127.25,127.23,11.38066062]
[1764586398350,0.14216157,127.25,127.24,0.67]
[1764586407568,0.14216157,127.26,127.24,0.67]
[1764586407876,3.60216157,127.26,127.24,0.67]
[1764586413562,0.14216157,127.26,127.24,8.52871647]
[1764586413765,3.60216157,127.26,127.24,8.52871647]
[1764586413955,3.60216157,127.26,127.25,0.71]
[1764586414460,3.60216157,127.26,127.25,8.56854616]
[1764586415054,75.71,127.31,127.25,32.66900464]
[1764586415275,12.26994492,127.3,127.26,5.16409306]
[1764586415475,0.14216157,127.29,127.26,5.16409306]
[1764586415675,0.14216157,127.29,127.27,0.71]
[1764586415980,12.26994492,127.3,127.27,0.71]
[1764586416166,16.72403798,127.3,127.27,0.71]
[1764586416479,0.14216157,127.29,127.27,0.71]
[1764586416680,0.14216157,127.29,127.27,8.56721415]
[1764586417674,0.14216157,127.29,127.28,0.71]
[1764586418276,0.14216157,127.33,127.28,13.02078696]
[1764586418473,3.46,127.32,127.28,13.02078696]
[1764586418679,3.46,127.32,127.29,0.71]
[1764586418982,0.14216157,127.31,127.29,0.71]
[1764586419162,3.46,127.32,127.29,0.71]
[1764586419366,3.46,127.32,127.3,7.85545954]
[1764586419564,0.14216157,127.31,127.3,7.85545954]
[1764586419765,3.46,127.32,127.3,7.85545954]
[1764586420161,0.14216157,127.31,127.3,7.85545954]
[1764586420784,0.14216157,127.31,127.3,8.56545954]
[1764586422489,0.14216157,127.31,127.3,0.71]
[1764586422867,21.97113113,127.31,127.28,7.85664342]
[1764586423074,0.14216157,127.29,127.28,8.56664342]
[1764586423386,0.14216157,127.29,127.28,7.85664342]
[1764586423767,0.14216157,127.29,127.27,7.85731122]
[1764586423965,0.14216157,127.29,127.27,8.56731122]
[1764586424180,0.14216157,127.29,127.28,0.71]
[1764586424474,0.14216157,127.29,127.27,7.85731122]
[1764586424783,8.95210649,127.29,127.27,0.71]
[1764586424986,16.80821323,127.29,127.27,0.71]
[1764586425365,0.14216157,127.3,127.27,5.16409306]
[1764586425565,0.14216157,127.3,127.28,4.45409306]
[1764586425789,0.14216157,127.3,127.29,7.85607667]
[1764586426082,3.46,127.31,127.29,8.56607667]
[1764586426274,3.60216157,127.31,127.3,0.71]
[1764586427862,0.14216157,127.31,127.3,8.56545954]
[1764586428280,0.14216157,127.31,127.3,13.0195526]
[1764586428485,8.80994492,127.34,127.3,13.0195526]
[1764586428486,12.26994492,127.34,127.3,13.0195526]
[1764586428687,12.26994492,127.34,127.31,0.71]
[1764586428981,12.26994492,127.34,127.31,5.16409306]
[1764586429183,27.82183063,127.35,127.31,5.16409306]
[1764586429490,27.82183063,127.35,127.32,0.71]
[1764586429981,11.51296663,127.35,127.32,8.56400746]
[1764586430181,3.66,127.35,127.32,8.56400746]
[1764586430382,3.66,127.35,127.33,0.71]
[1764586430383,8.11409306,127.35,127.33,0.71]
[1764586430690,4.37,127.35,127.32,8.56400746]
[1764586430881,8.11409306,127.35,127.33,0.71]
[1764586431388,4.59625463,127.34,127.33,0.71]
[1764586431986,4.59625463,127.34,127.31,7.85484251]
[1764586432282,4.59625463,127.34,127.32,0.71]
[1764586432593,0.14216157,127.34,127.32,0.71]
[1764586433463,0.14216157,127.34,127.32,8.56373472]
[1764586433663,0.14216157,127.34,127.33,0.71]
[1764586434068,4.59625463,127.34,127.33,0.71]
[1764586434387,4.59625463,127.34,127.32,8.56373472]
[1764586438080,4.59625463,127.33,127.32,8.56373472]
[1764586438394,4.59625463,127.33,127.31,0.7]
[1764586440789,4.59625463,127.32,127.3,0.7]
[1764586440996,4.59625463,127.32,127.31,0.7]
[1764586441482,0.14216157,127.32,127.31,0.7]
[1764586445170,0.14216157,127.32,127.31,8.55484251]
[1764586448377,0.14216157,127.33,127.31,8.55484251]
[1764586448579,0.14216157,127.33,127.32,0.7]
[1764586448994,7.91409306,127.34,127.32,0.7]
[1764586449389,0.14216157,127.33,127.32,0.7]
[1764586449774,0.14216157,127.33,127.32,8.55422557]
[1764586454101,4.59625463,127.33,127.32,8.55422557]
[1764586454306,4.59625463,127.33,127.32,0.7]
[1764586454614,4.59625463,127.33,127.31,7.85452137]
[1764586454786,4.59625463,127.33,127.31,8.55452137]
[1764586460909,0.14216157,127.32,127.31,8.55452137]
[1764586461206,0.14216157,127.32,127.31,7.85452137]
[1764586461413,0.14216157,127.32,127.31,8.55452137]
[1764586463715,2.34708884,127.33,127.31,28.19162764]
[1764586464009,2.48925041,127.33,127.32,0.7]
[1764586466307,2.48925041,127.33,127.32,8.55422557]
[1764586470112,0.14216157,127.32,127.29,23.09992993]
[1764586470309,0.14216157,127.32,127.31,0.7]
[1764586472303,0.14216157,127.32,127.3,8.55545954]
[1764586473520,0.14216157,127.32,127.31,0.7]
[1764586477130,0.14216157,127.32,127.31,8.55484251]
[1764586478406,0.14216157,127.32,127.31,0.7]
[1764586479330,0.14216157,127.32,127.31,8.55484251]
[1764586491440,0.80216157,127.32,127.29,4.16]
[1764586491627,2.98918261,127.32,127.3,0.7]
[1764586492641,78.64918261,127.32,127.3,8.55535429]
[1764586493045,77.98918261,127.32,127.3,8.55535429]
[1764586493219,78.64918261,127.32,127.3,7.85535429]
[1764586493945,3.64918261,127.32,127.3,8.55535429]
[1764586494129,2.98918261,127.32,127.3,8.55535429]
[1764586495239,77.98918261,127.32,127.3,8.55535429]
[1764586496230,2.98918261,127.32,127.3,8.55535429]
[1764586496543,77.98918261,127.32,127.3,8.55535429]
[1764586497146,77.98918261,127.32,127.3,0.7]
[1764586497529,78.70918261,127.32,127.29,8.53602805]
[1764586497847,78.70918261,127.32,127.3,0.68]
[1764586498626,3.70918261,127.32,127.3,0.68]
[1764586498949,0.14216157,127.32,127.3,8.53533625]
[1764586499126,0.14216157,127.32,127.31,0.68]
[1764586514638,0.14216157,127.32,127.31,8.53484251]
[1764586517043,0.14216157,127.32,127.31,32.1485227]
[1764586520454,0.14216157,127.32,127.31,8.53484251]
[1764586520654,0.14216157,127.32,127.31,14.84186355]
[1764586525254,0.14216157,127.32,127.31,14.16186355]
[1764586525453,0.14216157,127.32,127.31,7.85484251]
[1764586525675,0.14216157,127.32,127.31,8.53484251]
[1764586528159,0.14216157,127.32,127.3,8.56545954]
[1764586529181,0.14216157,127.32,127.31,0.71]
[1764586529680,4.59193694,127.32,127.3,8.56545954]
[1764586529883,4.59193694,127.31,127.3,8.56545954]
[1764586530071,0.14216157,127.31,127.3,8.56545954]
[1764586537788,0.14216157,127.3,127.28,17.62007162]
[1764586538085,4.59193694,127.29,127.28,7.85651919]
[1764586538890,5.29193694,127.29,127.28,7.85651919]
[1764586539092,4.59193694,127.29,127.28,7.85651919]
[1764586539400,4.59193694,127.29,127.28,8.56651919]
[1764586540592,4.59193694,127.29,127.27,28.21031064]
[1764586542494,4.59193694,127.29,127.27,27.50031064]
[1764586542693,4.59193694,127.29,127.27,28.21031064]
[1764586544899,4.59193694,127.29,127.27,27.50031064]
[1764586545197,4.59193694,127.29,127.28,0.71]
[1764586545890,4.59193694,127.29,127.28,8.5666939]
[1764586550904,0.14216157,127.28,127.26,8.5678032]
[1764586551099,4.59193694,127.28,127.26,8.5678032]
[1764586551899,4.59193694,127.28,127.26,7.8578032]
[1764586552093,4.59193694,127.28,127.27,0.71]
[1764586552704,0.14216157,127.28,127.27,0.71]
[1764586552903,4.59193694,127.29,127.27,8.56729754]
[1764586554599,0.14216157,127.29,127.27,8.56729754]
[1764586554790,4.59193694,127.29,127.27,8.56729754]
[1764586560994,5.25193694,127.29,127.27,7.85729754]
[1764586561191,4.59193694,127.29,127.27,8.55729754]
[1764586562513,4.59193694,127.29,127.27,8.55729754]
[1764586564289,102.74297728,127.3,127.26,27.50275027]
[1764586564290,0.14216157,127.28,127.26,27.50275027]
[1764586564512,4.59193694,127.28,127.26,27.50275027]
[1764586565118,4.59193694,127.28,127.27,0.7]
[1764586565502,4.59193694,127.28,127.27,8.55731122]
[1764586567416,0.14216157,127.28,127.27,8.55731122]
[1764586569708,0.14216157,127.28,127.27,7.85731122]
[1764586572326,0.14216157,127.28,127.27,8.55731122]
[1764586582733,0.0873877,127.28,127.27,8.55731122]
[1764586586320,0.0873877,127.28,127.27,13.00708659]
[1764586586522,0.0873877,127.28,127.27,8.55731122]
[1764586591140,0.0873877,127.28,127.27,11.40604396]
[1764586593435,0.0873877,127.28,127.27,8.55731122]
[1764586593633,0.0873877,127.28,127.27,7.85731122]
[1764586594139,0.0873877,127.28,127.27,8.56731122]
[1764586594337,0.0873877,127.28,127.26,8.56777538]
[1764586594643,0.14216157,127.27,127.26,0.71]
[1764586595329,0.14216157,127.27,127.26,8.56792865]
[1764586596326,0.14216157,127.27,127.26,11.41666139]
[1764586596511,0.14216157,127.28,127.26,11.41666139]
[1764586596713,0.14216157,127.28,127.27,3.55873274]
[1764586598045,0.14216157,127.28,127.27,11.41604396]
[1764586598645,0.14216157,127.29,127.27,11.41604396]
[1764586600350,0.14216157,127.29,127.28,8.5666939]
[1764586600550,0.14216157,127.29,127.28,7.8566939]
[1764586604152,0.14216157,127.29,127.28,8.5666939]
[1764586604339,0.14216157,127.29,127.28,7.8566939]
[1764586609058,0.80216157,127.29,127.27,8.56707197]
[1764586610057,0.14216157,127.29,127.27,8.56707197]
[1764586613343,0.14216157,127.27,127.25,14.87675768]
[1764586613553,0.14216157,127.27,127.26,0.71]
[1764586616465,0.14216157,127.27,127.26,8.56792865]
[1764586617138,0.14216157,127.26,127.24,8.56916378]
[1764586617335,0.14216157,127.26,127.25,0.71]
[1764586619562,0.86216157,127.27,127.24,11.41789652]
[1764586619753,0.86216157,127.27,127.24,8.56916378]
[1764586620969,0.14216157,127.27,127.26,2.84873274]
[1764586621374,0.14216157,127.27,127.26,3.55873274]
[1764586621545,0.14216157,127.28,127.26,0.71]
[1764586621745,0.14216157,127.28,127.26,3.55873274]
[1764586622273,0.14216157,127.28,127.27,0.71]
[1764586622850,0.14216157,127.28,127.26,11.41650754]
[1764586623358,0.14216157,127.28,127.26,10.70650754]
[1764586623559,0.14216157,127.28,127.26,11.41650754]
[1764586623976,0.14216157,127.28,127.27,0.71]
[1764586624176,0.14216157,127.28,127.26,10.70650754]
[1764586624361,0.14216157,127.28,127.26,11.41650754]
[1764586625477,0.14216157,127.28,127.26,8.5677748]
[1764586627573,0.14216157,127.28,127.26,7.8577748]
[1764586627765,0.72,127.28,127.26,7.8577748]
[1764586627966,0.14216157,127.27,127.26,7.8577748]
[1764586628579,0.14216157,127.27,127.26,8.5677748]
[1764586632185,0.14216157,127.28,127.26,8.5677748]
[1764586632385,0.14216157,127.28,127.27,3.55873274]
[1764586632561,0.14216157,127.28,127.27,0.71]
[1764586632885,0.14216157,127.28,127.26,28.21259642]
[1764586635484,0.86216157,127.28,127.26,27.50259642]
[1764586635673,0.86216157,127.28,127.26,7.8577748]
[1764586635984,4.32216157,127.28,127.25,7.8582759]
[1764586636383,0.14216157,127.26,127.25,7.8582759]
[1764586638190,0.14216157,127.26,127.25,8.5682759]
[1764586638593,0.72,127.27,127.25,8.5682759]
[1764586640289,7.02873274,127.28,127.25,8.5682759]
[1764586642399,0.14216157,127.27,127.25,8.5682759]
[1764586642778,0.86216157,127.27,127.25,28.21464132]
[1764586643794,0.14216157,127.27,127.25,28.21464132]
[1764586645001,0.86216157,127.27,127.25,28.21464132]
[1764586645395,0.14216157,127.27,127.25,28.21464132]
[1764586648594,0.80216157,127.27,127.25,28.21464132]
[1764586650206,0.14216157,127.27,127.25,28.21464132]
[1764586651116,0.14216157,127.27,127.25,28.18464132]
[1764586651492,0.14216157,127.27,127.26,8.53792865]
[1764586652207,0.14216157,127.28,127.26,28.18275027]
[1764586652416,3.60216157,127.28,127.27,0.68]
[1764586653507,3.60216157,127.28,127.27,8.53731122]
[1764586653907,0.14216157,127.28,127.27,8.53731122]
[1764586654112,0.14216157,127.28,127.27,12.99080397]
[1764586655613,0.14216157,127.29,127.27,32.63408204]
[1764586655919,0.14216157,127.29,127.28,0.68]
[1764586658021,0.14216157,127.29,127.28,8.5366939]
[1764586659605,0.14216157,127.3,127.28,32.6319214]
[1764586659791,75.0,127.31,127.29,0.68]
[1764586659997,4.12,127.32,127.29,0.68]
[1764586660312,0.14216157,127.31,127.3,7.85545954]
[1764586661315,0.80216157,127.31,127.3,7.85545954]
[1764586661520,0.80216157,127.31,127.29,19.63915722]
[1764586662809,0.80216157,127.31,127.29,20.31915722]
[1764586663614,0.14216157,127.31,127.29,28.17523389]
[1764586664311,12.41210649,127.32,127.3,0.68]
[1764586664517,12.41210649,127.32,127.3,5.13349275]
[1764586664714,12.41210649,127.32,127.3,0.68]
[1764586665092,13.07210649,127.32,127.29,27.49523389]
[1764586665412,13.07210649,127.32,127.3,0.68]
[1764586665815,13.07210649,127.32,127.31,7.85484251]
[1764586667921,12.41210649,127.32,127.31,7.85484251]
[1764586668496,13.07210649,127.32,127.31,7.85484251]
[1764586671324,88.07210649,127.32,127.29,0.68]
[1764586671628,92.52559924,127.32,127.29,0.68]
[1764586671820,88.07210649,127.32,127.29,5.13349275]
[1764586672132,13.07210649,127.32,127.29,5.13349275]
[1764586672326,13.07210649,127.32,127.3,7.85545954]
[1764586672694,13.07210649,127.32,127.3,27.4941084]
[1764586674826,12.41210649,127.32,127.3,27.4941084]
[1764586675128,12.41210649,127.32,127.3,28.1741084]
[1764586675432,13.07210649,127.32,127.3,28.1741084]
[1764586676416,13.07210649,127.32,127.3,27.4941084]
[1764586677922,88.07210649,127.32,127.3,27.4941084]
[1764586680827,13.07210649,127.32,127.3,27.4941084]
[1764586681032,13.08210649,127.32,127.3,27.4941084]
[1764586683630,9.62210649,127.31,127.3,27.4941084]
[1764586684221,8.95210649,127.31,127.3,27.4941084]
[1764586685335,0.14216157,127.31,127.3,27.4941084]
[1764586685538,0.14216157,127.31,127.3,28.1841084]
[1764586703238,73.5363464,127.33,127.3,32.63760115]
[1764586703239,2.34708884,127.33,127.3,32.63760115]
[1764586703438,2.34708884,127.33,127.32,4.45349275]
[1764586703637,2.48925041,127.33,127.32,4.45349275]
[1764586703844,2.48925041,127.33,127.32,0.69]
[1764586704238,2.48925041,127.33,127.32,8.54422557]
[1764586708143,3.62817218,127.35,127.32,32.63328225]
[1764586708333,3.62817218,127.35,127.34,4.45349275]
[1764586708739,3.62817218,127.35,127.34,9.62274827]
[1764586709643,3.62817218,127.35,127.34,17.47574025]
[1764586710046,3.77033375,127.35,127.34,17.47574025]
[1764586710343,3.77033375,127.35,127.34,15.8676657]
[1764586714427,3.77033375,127.35,127.34,13.0222475]
[1764586714640,3.77033375,127.35,127.34,15.8676657]
[1764586715045,3.77033375,127.35,127.34,13.0222475]
[1764586715244,3.77033375,127.35,127.34,8.51299198]
[1764586717762,0.14216157,127.34,127.33,7.85302614]
[1764586717957,0.81216157,127.34,127.33,7.85302614]
[1764586718662,0.14216157,127.34,127.33,7.85302614]
[1764586725244,0.14216157,127.34,127.33,0.66]
[1764586727262,0.14216157,127.34,127.33,11.35902693]
[1764586727463,3.62817218,127.35,127.33,11.35902693]
[1764586727464,3.62817218,127.35,127.33,30.99304876]
[1764586727665,3.62817218,127.35,127.34,0.66]
[1764586727970,3.62817218,127.35,127.34,3.5054182]
[1764586728266,3.77033375,127.35,127.34,3.5054182]
[1764586728473,3.77033375,127.35,127.34,11.35841018]
[1764586728666,3.62817218,127.35,127.34,11.35841018]
[1764586728873,3.77033375,127.35,127.34,11.35841018]
[1764586729067,3.62817218,127.35,127.34,11.35841018]
[1764586729568,3.77033375,127.35,127.34,11.35841018]
[1764586731472,3.62817218,127.35,127.34,11.35841018]
[1764586731676,3.62817218,127.35,127.34,19.9976657]
[1764586734361,0.14216157,127.36,127.34,39.63014567]
[1764586734562,4.50925552,127.37,127.35,3.5054182]
[1764586734763,4.65141709,127.37,127.36,2.8454182]
[1764586735082,4.65141709,127.37,127.36,8.01467372]
[1764586735984,4.65141709,127.37,127.36,15.86643251]
[1764586738184,4.50925552,127.37,127.36,15.86643251]
[1764586739774,1e-08,127.37,127.36,15.86643251]
[1764586746275,1e-08,127.37,127.36,13.02101431]
[1764586746472,1e-08,127.37,127.36,15.86643251]
[1764586750876,1e-08,127.39,127.36,35.49582949]
[1764586751198,1e-08,127.39,127.38,2.8454182]
[1764586751584,1e-08,127.39,127.38,3.5254182]
[1764586752118,1e-08,127.39,127.38,9.11575706]
[1764586752678,1e-08,127.39,127.38,20.49742986]
[1764586752880,1e-08,127.39,127.38,9.11575706]
[1764586754997,0.14216158,127.39,127.38,13.44086484]
[1764586755187,0.14216158,127.39,127.38,7.85052598]
[1764586761087,0.14216158,127.39,127.38,8.53052598]
[1764586761290,0.14216158,127.39,127.38,10.69594418]
[1764586765305,0.14216158,127.39,127.38,11.37594418]
[1764586768207,1e-08,127.4,127.39,0.67]
[1764586768414,1e-08,127.4,127.39,3.5154182]
[1764586770513,1e-08,127.4,127.39,11.36532792]
[1764586771601,1e-08,127.41,127.4,0.67]
[1764586771799,1e-08,127.41,127.4,6.9754182]
[1764586772393,1e-08,127.41,127.4,23.29105087]
[1764586774830,1e-08,127.41,127.4,16.41962866]
[1764586778100,1e-08,127.41,127.4,11.97929356]
[1764586778416,1e-08,127.41,127.4,16.41962866]
[1764586782335,1e-08,127.41,127.4,11.30929356]
[1764586782721,1e-08,127.41,127.4,11.98929356]
[1764586782935,1e-08,127.41,127.4,16.42962866]
[1764586788710,1e-08,127.41,127.4,15.74962866]
[1764586788912,1e-08,127.41,127.4,16.42962866]
[1764586799834,0.2,127.43,127.41,0.68]
[1764586800033,0.2,127.43,127.42,15.72839662]
[1764586800240,0.2,127.43,127.42,16.40839662]
[1764586801336,1.04216157,127.43,127.42,7.84806152]
[1764586802027,1.04216157,127.43,127.41,31.91070633]
[1764586802341,1.04216157,127.43,127.41,27.47037123]
[1764586802844,1.04216157,127.43,127.41,28.15037123]
[1764586803219,1.04216157,127.43,127.41,27.47037123]
[1764586803450,0.7,127.42,127.41,27.47037123]
[1764586803620,0.34216157,127.43,127.41,27.47037123]
[1764586803825,1.04216157,127.43,127.41,27.47037123]
[1764586804548,0.34216157,127.43,127.41,27.47037123]
[1764586804721,0.84216157,127.42,127.41,27.47037123]
[1764586809143,0.14216157,127.42,127.41,27.47037123]
[1764586815959,0.84216157,127.42,127.41,27.47037123]
[1764586816643,0.14216157,127.42,127.41,27.47037123]
[1764586819670,0.14216157,127.42,127.41,32.59070633]
[1764586819959,0.2,127.43,127.41,32.59070633]
[1764586820253,0.2,127.43,127.42,8.5603351]
[1764586820836,0.2,127.43,127.42,16.51284065]
[1764586822662,0.2,127.43,127.42,24.36090217]
[1764586830955,7.95250555,127.44,127.42,43.98105599]
[1764586831264,7.95250555,127.44,127.43,5.1603351]
[1764586831567,7.95250555,127.44,127.43,14.33608556]
[1764586831768,1e-08,127.44,127.43,14.33608556]
[1764586832440,1e-08,127.44,127.43,12.73598109]
[1764586833066,1e-08,127.44,127.43,20.58342674]
[1764586837281,1e-08,127.44,127.43,20.58342674]
[1764586838354,1e-08,127.45,127.44,0.72]
[1764586838563,1e-08,127.45,127.44,18.36115315]
[1764586838976,1e-08,127.45,127.44,35.24157192]
[1764586849075,10.11467223,127.48,127.46,16.308864]
[1764586849274,10.11467223,127.48,127.47,6.28023063]
[1764586849799,10.11467223,127.48,127.47,17.61814778]
[1764586850657,10.11467223,127.48,127.47,19.18290028]
[1764586850658,10.9668338,127.48,127.47,19.18290028]
[1764586850858,0.14216157,127.47,127.44,3.44]
[1764586851169,9.66210649,127.47,127.42,7.84806152]
[1764586851797,0.71,127.46,127.42,10.68829215]
[1764586852077,0.71,127.46,127.42,30.30844597]
[1764586852381,0.14216157,127.45,127.42,27.46821534]
[1764586852780,0.14216157,127.43,127.42,27.46821534]
[1764586853586,0.85216157,127.43,127.42,27.46821534]
[1764586853884,0.14216157,127.45,127.42,31.02844597]
[1764586854092,0.14216157,127.45,127.43,6.30023063]
[1764586854262,0.14216157,127.45,127.44,2.84023063]
[1764586854459,0.85216157,127.45,127.44,2.84023063]
[1764586854982,0.85216157,127.45,127.43,6.30023063]
[1764586855890,0.85216157,127.45,127.44,7.84682988]
[1764586860688,0.14216157,127.45,127.44,7.84682988]
[1764586860891,0.14216157,127.47,127.44,30.98413521]
[1764586861188,10.11467223,127.48,127.47,7.84498313]
[1764586861394,10.11467223,127.48,127.47,14.14521376]
[1764586861598,10.11467223,127.48,127.47,26.73096934]
[1764586865094,10.11467223,127.48,127.47,23.89073871]
[1764586865302,10.11467223,127.48,127.47,26.05096934]
[1764586867274,10.11467223,127.48,127.47,26.73096934]
[1764586867791,10.11467223,127.48,127.47,19.75073871]
[1764586867792,10.9668338,127.48,127.47,19.75073871]
[1764586867977,13.80706443,127.48,127.44,19.61643948]
[1764586868177,0.14216157,127.46,127.44,27.46326936]
[1764586868580,0.14216157,127.46,127.44,30.30349999]
[1764586868786,0.14216157,127.47,127.45,6.98023063]
[1764586869600,0.14216157,127.47,127.45,6.30023063]
[1764586871407,0.14216157,127.47,127.46,7.84559861]
[1764586872084,10.11467223,127.48,127.46,30.97982578]
[1764586872281,0.2,127.49,127.47,6.98023063]
[1764586872482,0.2,127.49,127.48,2.84023063]
[1764586872682,0.2,127.49,127.48,3.52023063]
[1764586873093,0.2,127.49,127.48,14.71598621]
[1764586873502,0.2,127.49,127.48,22.56035395]
[1764586875599,1e-08,127.49,127.48,22.56035395]
[1764586875803,1e-08,127.49,127.48,38.86921795]
[1764586878883,1e-08,127.49,127.48,27.67346237]
[1764586882591,1e-08,127.49,127.48,24.83323174]
[1764586882791,1e-08,127.49,127.48,27.67346237]
[1764586888017,1e-08,127.49,127.48,26.99346237]
[1764586888314,0.86216158,127.49,127.48,7.84436774]
[1764586889114,0.86216158,127.49,127.48,10.68459837]
[1764586889309,1e-08,127.49,127.48,10.68459837]
[1764586890297,1e-08,127.49,127.48,11.40459837]
[1764586891220,1e-08,127.49,127.48,22.76552089]
[1764586891415,1e-08,127.49,127.48,11.40459837]
[1764586893295,0.2,127.52,127.49,0.72]
[1764586893524,0.2,127.52,127.51,2.84023063]
[1764586894001,0.2,127.52,127.51,3.56023063]
[1764586894407,0.2,127.52,127.51,5.15294277]
[1764586895117,0.2,127.52,127.51,4.43294277]
[1764586895819,0.2,127.52,127.51,12.27546492]
[1764586905423,0.2,127.52,127.51,12.99546492]
[1764586905615,1e-08,127.52,127.51,12.99546492]
[1764586905815,1e-08,127.53,127.51,48.1906343]
[1764586906019,1e-08,127.53,127.52,8.61294277]
[1764586907824,13.35792226,127.55,127.53,0.72]
[1764586908026,13.35792226,127.55,127.54,7.89294277]
[1764586908527,13.35792226,127.55,127.54,8.61294277]
[1764586908930,13.35792226,127.55,127.54,16.4536202]
[1764586914121,14.07792226,127.55,127.54,7.84067743]
[1764586916617,14.07792226,127.55,127.54,12.2736202]
[1764586917431,13.35792226,127.55,127.54,12.2736202]
[1764586919812,13.35792226,127.55,127.54,12.9836202]
[1764586922218,13.35792226,127.55,127.54,12.2736202]